bitfinex-derivatives/quotes_SOLF0:USTF0_20250823
["timestamp","ask_amount","ask_price","bid_price","bid_amount"]
[1755918907217,7.8012,198.06,197.99,5.0527]
[1755918908015,2.75,198.06,197.97,2.92]
[1755918908216,2.75,198.06,197.98,4.70864969]
[1755918908424,2.75,198.06,197.94,2.92]
[1755918908616,2.75,198.06,197.95,11.48907774]
[1755918908818,2.75,198.06,197.96,9.47859269]
[1755918909121,5.0517,198.04,197.97,14.53179269]
[1755918909313,5.0517,198.04,197.98,4.70339129]
[1755918909618,7.8017,198.04,197.99,7.62339129]
[1755918909816,2.75,198.04,197.97,5.0532]
[1755918910127,2.75,198.04,197.99,2.92]
[1755918910417,2.75,198.04,197.98,5.053]
[1755918910621,5.0512,198.06,197.99,7.62512418]
[1755918910819,5.0512,198.06,197.99,2.92]
[1755918911416,7.8006,198.08,198.0,4.70409686]
[1755918911619,2.75,198.08,198.02,2.92]
[1755918911817,2.75,198.08,198.04,2.92]
[1755918914316,2.75,198.08,197.95,2.92]
[1755918914515,2.75,198.08,197.96,11.49961013]
[1755918914716,2.75,198.08,197.98,2.92]
[1755918915023,2.75,198.08,197.99,9.48753878]
[1755918915223,2.75,198.08,198.0,4.7084467]
[1755918915426,2.75,198.08,198.01,4.7084467]
[1755918915623,2.75,198.08,197.98,7.9729]
[1755918915822,2.75,198.08,197.99,9.49443231]
[1755918916026,2.75,198.08,198.0,9.49443231]
[1755918916223,5.0509,198.07,198.01,9.49344929]
[1755918916529,2.75,198.08,198.02,9.49139114]
[1755918916728,2.75,198.08,198.03,7.63128261]
[1755918917028,2.75,198.08,198.03,2.92]
[1755918917622,5.0507,198.08,198.0,5.0524]
[1755918917833,2.75,198.06,198.01,12.40886875]
[1755918918024,2.75,198.05,197.98,2.92]
[1755918918224,2.75,198.05,197.99,9.49136916]
[1755918918428,2.75,198.05,198.0,12.41136916]
[1755918918626,2.75,198.05,198.01,4.70971981]
[1755918918831,2.75,198.05,198.02,4.70971981]
[1755918919029,2.75,198.05,197.99,2.92]
[1755918919230,2.75,198.05,198.0,9.49321716]
[1755918919430,2.75,198.08,198.01,7.63054089]
[1755918919629,7.8012,198.06,198.02,4.71054089]
[1755918919825,7.8012,198.06,198.01,2.92]
[1755918920020,7.8012,198.06,198.02,4.71347573]
[1755918920225,7.8012,198.06,198.01,2.92]
[1755918920425,7.8012,198.06,198.02,4.71274531]
[1755918920631,7.8012,198.06,198.01,2.92]
[1755918920833,7.8012,198.06,198.02,4.71365834]
[1755918921131,7.8012,198.06,198.01,2.92]
[1755918921324,7.8012,198.06,198.02,4.71580135]
[1755918921528,7.8012,198.06,198.01,2.92]
[1755918921728,7.8012,198.06,198.02,4.71590139]
[1755918921928,7.8012,198.06,198.01,2.92]
[1755918922130,7.8012,198.06,198.02,4.7136665]
[1755918922332,7.8012,198.06,198.02,2.92]
[1755918923233,2.75,198.05,197.97,2.92]
[1755918923424,2.75,198.05,197.98,9.5002824]
[1755918923627,2.75,198.05,197.99,9.5002824]
[1755918923828,2.75,198.05,197.97,2.92]
[1755918923829,2.75,198.04,198.0,7.63447393]
[1755918924029,2.75,198.04,198.0,2.92]
[1755918924332,2.75,198.07,197.92,32.29350302]
[1755918924533,5.0514,198.05,197.97,7.9732]
[1755918924731,5.0514,198.05,197.98,9.49530424]
[1755918924936,2.75,198.05,197.99,4.71168038]
[1755918925234,5.0523,198.02,197.95,5.0538]
[1755918925434,5.0523,198.02,197.96,12.41397135]
[1755918925635,5.0523,198.02,197.98,2.92]
[1755918925930,5.0523,198.02,197.99,4.71095829]
[1755918926134,5.0523,198.02,197.98,2.92]
[1755918926335,7.8023,198.02,197.99,4.71368313]
[1755918926529,7.8023,198.02,197.98,2.92]
[1755918928133,5.0525,198.01,197.98,2.92]
[1755918928737,5.0525,198.01,197.89,10.1106]
[1755918928928,5.0525,198.01,197.9,15.78708121]
[1755918929236,5.0525,198.01,197.92,2.92]
[1755918929431,5.0525,198.01,197.93,4.78769715]
[1755918929637,5.0525,198.01,197.94,19.49308639]
[1755918929837,5.0525,198.01,197.95,9.50341607]
[1755918930029,7.8025,198.01,197.96,12.42341607]
[1755918930229,7.8025,198.01,197.97,7.63571892]
[1755918930434,7.8025,198.01,197.98,4.71571892]
[1755918930633,7.8025,198.01,197.97,2.92]
[1755918932832,2.75,198.0,197.91,2.92]
[1755918933033,2.75,198.0,197.93,2.92]
[1755918933234,2.65,198.03,197.94,4.71693432]
[1755918933542,2.65,198.03,197.95,4.71693432]
[1755918933845,2.65,198.03,197.96,4.71693432]
[1755918934045,5.053,197.99,197.93,7.9743]
[1755918934236,5.053,197.99,197.94,4.71779138]
[1755918934438,5.053,197.99,197.96,2.66]
[1755918934839,2.65,198.03,197.9,2.66]
[1755918935136,15.16,198.1,197.92,2.66]
[1755918935137,2.65,198.06,197.92,2.66]
[1755918935337,5.0507,198.08,198.0,5.0525]
[1755918935540,5.0507,198.08,198.01,7.40982392]
[1755918935738,2.65,198.1,198.02,12.1396782]
[1755918935938,2.65,198.1,198.03,4.74982392]
[1755918936137,2.65,198.1,198.04,4.74982392]
[1755918936339,2.65,198.1,198.02,2.66]
[1755918936539,7.7002,198.1,198.03,4.74868247]
[1755918936741,7.7002,198.1,198.04,4.74868247]
[1755918936941,7.7002,198.1,198.02,7.712]
[1755918937140,7.7002,198.1,198.03,4.74928048]
[1755918937340,7.7002,198.1,198.04,4.74928048]
[1755918937546,7.7002,198.1,198.02,7.712]
[1755918937745,7.7002,198.1,198.03,4.74874931]
[1755918937944,7.7002,198.1,198.04,4.74874931]
[1755918938145,7.7002,198.1,198.02,7.712]
[1755918938346,7.7002,198.1,198.03,4.74782061]
[1755918938543,7.7002,198.1,198.02,7.712]
[1755918938742,7.7002,198.1,198.03,4.74631897]
[1755918938946,7.7002,198.1,198.04,4.74631897]
[1755918939141,7.7002,198.1,198.02,7.712]
[1755918939340,7.7002,198.1,198.03,4.74612601]
[1755918939542,5.0495,198.13,198.04,7.40612601]
[1755918939752,5.0495,198.13,198.05,7.40612601]
[1755918940041,2.65,198.1,198.06,2.66]
[1755918940246,2.65,198.1,198.02,5.052]
[1755918940446,2.65,198.1,198.03,7.40448559]
[1755918940747,2.65,198.1,198.04,4.74448559]
[1755918940940,2.65,198.1,198.03,2.66]
[1755918941141,2.65,198.1,198.04,4.74392947]
[1755918941340,2.65,198.1,198.05,4.74257729]
[1755918941547,2.65,198.1,198.06,2.66]
[1755918943344,5.05,198.11,198.04,2.66]
[1755918945450,5.05,198.11,198.05,7.39894918]
[1755918945650,5.05,198.11,198.05,2.66]
[1755918947348,2.65,198.1,198.0,2.66]
[1755918947949,5.0515,198.05,198.0,2.66]
[1755918948152,7.7015,198.05,198.0,2.66]
[1755918948451,2.65,198.09,198.0,2.66]
[1755918949251,5.0515,198.05,198.0,2.66]
[1755918949453,2.65,198.07,198.01,4.74558993]
[1755918949753,2.65,198.07,197.99,2.66]
[1755918949954,7.7009,198.07,198.0,4.74558576]
[1755918950155,2.65,198.07,197.99,2.66]
[1755918950355,2.65,198.07,198.0,4.74544765]
[1755918950555,2.65,198.07,198.01,4.74544765]
[1755918950757,2.65,198.07,197.99,2.66]
[1755918951053,2.65,198.07,198.0,4.7465592]
[1755918951254,2.65,198.07,197.99,7.7127]
[1755918951454,2.65,198.07,198.0,4.74689912]
[1755918951650,2.65,198.07,197.99,2.66]
[1755918951848,2.65,198.12,198.01,2.66]
[1755918952049,2.65,198.12,198.02,4.74650078]
[1755918952247,2.65,198.12,198.01,2.66]
[1755918952454,2.65,198.12,198.02,4.74442252]
[1755918952656,2.65,198.12,198.01,2.66]
[1755918952854,2.65,198.12,198.02,4.7405278]
[1755918953054,2.65,198.12,198.01,2.66]
[1755918953256,2.65,198.12,198.02,4.74095628]
[1755918953552,5.0501,198.1,198.02,5.0519]
[1755918953758,2.65,198.12,198.01,2.66]
[1755918954054,2.65,198.12,198.02,4.74047367]
[1755918954256,2.65,198.12,198.01,2.66]
[1755918954554,5.051,198.07,198.02,4.74039706]
[1755918954760,2.65,198.06,198.01,2.66]
[1755918955057,2.65,198.06,198.02,4.74100458]
[1755918955258,2.65,198.06,198.01,2.66]
[1755918955452,2.65,198.06,198.02,4.74196947]
[1755918955660,2.65,198.06,198.01,2.66]
[1755918955953,7.7012,198.06,198.02,4.74278108]
[1755918956157,2.65,198.05,197.98,2.66]
[1755918956357,2.65,198.05,197.99,4.74562417]
[1755918956656,5.0517,198.04,198.0,7.40562417]
[1755918956854,2.65,198.08,198.01,2.66]
[1755918958560,5.0512,198.06,198.01,2.66]
[1755918958753,7.7012,198.06,198.01,2.66]
[1755918960251,2.65,198.05,198.01,2.66]
[1755918961862,2.65,198.04,197.97,7.7133]
[1755918962058,2.65,198.04,197.98,4.74892102]
[1755918962361,2.65,198.03,197.99,4.74892102]
[1755918962560,2.65,198.03,197.96,2.66]
[1755918962763,2.65,198.03,197.97,4.74803484]
[1755918963065,2.65,198.03,197.99,2.66]
[1755918963264,5.0512,198.06,197.98,2.87]
[1755918963463,5.0512,198.06,197.99,4.74706467]
[1755918963767,5.0512,198.06,198.0,4.74632096]
[1755918964063,5.0512,198.06,197.98,2.87]
[1755918964261,5.0512,198.06,197.99,4.74410427]
[1755918964463,5.0512,198.06,198.0,4.74410427]
[1755918964667,5.0512,198.06,197.98,7.923]
[1755918964864,5.0512,198.06,197.99,4.74230556]
[1755918965165,5.0512,198.06,198.0,4.76946248]
[1755918965364,5.0512,198.06,197.98,7.923]
[1755918965664,5.0512,198.06,197.99,4.76946229]
[1755918965859,5.0512,198.06,198.0,4.76946229]
[1755918966065,5.0515,198.05,197.98,7.923]
[1755918966264,5.0515,198.05,197.99,4.76922569]
[1755918966463,2.8,198.04,198.0,4.76922569]
[1755918966766,2.8,198.04,197.98,7.923]
[1755918966965,2.8,198.04,198.0,2.87]
[1755918970266,25.2493,198.11,197.92,32.29290302]
[1755918970267,2.8,198.08,198.01,4.76344482]
[1755918970567,2.8,198.11,198.02,7.63344482]
[1755918970769,7.8499,198.11,198.04,5.0515]
[1755918971267,0.0361785,198.08,198.05,2.87]
[1755918971467,0.0361785,198.08,198.06,2.87]
[1755918971671,0.0361785,198.08,198.07,2.87]
[1755918972867,0.0361785,198.08,198.07,12.68508536]
[1755918974171,0.0361785,198.08,198.07,7.9208]
[1755918974672,0.0361785,198.08,198.06,0.03219752]
[1755918975578,0.0361785,198.08,198.07,2.87]
[1755918975975,0.0361785,198.08,198.06,0.03219752]
[1755918978078,0.0361785,198.08,198.06,2.90219752]
[1755918978373,0.0361785,198.08,198.07,2.87]
[1755918985781,2.8,198.07,198.06,0.03219752]
[1755918987082,5.0869785,198.08,198.06,0.03219752]
[1755918987278,0.0361785,198.08,198.06,0.03219752]
[1755918987781,2.8361785,198.08,198.06,0.03219752]
[1755918987980,0.0361785,198.08,198.06,0.03219752]
[1755918988180,2.8361785,198.08,198.06,0.03219752]
[1755918988382,0.0361785,198.08,198.06,0.03219752]
[1755918988779,0.0361785,198.08,198.07,2.87]
[1755918990487,0.87862147,198.17,198.07,7.62990744]
[1755918990681,0.87862147,198.17,198.08,4.75990744]
[1755918990986,0.87862147,198.17,198.09,7.62990744]
[1755918991185,0.87862147,198.17,198.09,2.87]
[1755918991582,0.87862147,198.17,198.09,7.9201]
[1755918991583,5.0486,198.16,198.09,7.9201]
[1755918991785,5.0486,198.16,198.11,0.03476706]
[1755918992089,2.8,198.15,198.11,2.90476706]
[1755918993393,7.8489,198.15,198.11,2.90476706]
[1755918993690,0.87862147,198.17,198.11,0.03476706]
[1755918993891,2.7,198.16,198.11,0.03476706]
[1755918994286,2.7,198.12,198.11,0.03476706]
[1755918999789,5.0495,198.13,198.11,0.03476706]
[1755918999991,7.7488,198.15,198.11,0.03476706]
[1755919000188,2.7,198.14,198.11,0.03476706]
[1755919000490,2.7,198.13,198.11,0.03476706]
[1755919000993,2.7,198.12,198.11,0.03476706]
[1755919010299,2.7,198.12,198.03,2.91]
[1755919010499,127.0,198.11,198.04,4.7597061]
[1755919010800,2.7,198.1,198.03,2.91]
[1755919010998,2.7,198.1,198.04,4.7597061]
[1755919011204,2.7,198.1,198.03,2.91]
[1755919011498,5.0508,198.08,198.04,4.76120887]
[1755919011702,5.0508,198.08,198.04,2.91]
[1755919012098,7.7508,198.08,198.04,2.91]
[1755919012296,2.7,198.07,198.01,2.91]
[1755919012491,2.7,198.1,198.02,4.76239414]
[1755919012692,9.72030302,198.08,197.94,2.91]
[1755919012902,5.0521,198.02,197.95,11.53636062]
[1755919013201,5.0521,198.02,197.96,11.53636062]
[1755919013499,5.0521,198.02,197.98,2.91]
[1755919013694,5.0521,198.02,197.87,29.47581288]
[1755919013695,7.7524,198.01,197.99,4.7641478]
[1755919014001,2.7,198.0,197.95,2.91]
[1755919014204,2.7,198.0,197.96,9.51888161]
[1755919014404,2.7,198.0,197.97,4.76268967]
[1755919014703,2.7,198.0,197.98,4.76268967]
[1755919014903,2.7,197.99,197.95,2.91]
[1755919015102,2.7,197.99,197.96,4.75971731]
[1755919015298,2.7,197.99,197.97,4.75971731]
[1755919015506,2.7,197.99,197.98,4.75971731]
[1755919015894,5.0528,198.0,197.94,2.91]
[1755919016098,5.0528,198.0,197.96,2.91]
[1755919017004,7.7528,198.0,197.96,2.91]
[1755919018704,7.7528,198.0,197.89,196.63571853]
[1755919018705,2.7,198.06,197.91,25.2742]
[1755919018905,2.7,198.06,197.94,2.91]
[1755919018906,7.02030302,198.04,197.94,2.91]
[1755919019099,7.02030302,198.04,197.96,2.91]
[1755919019403,32.27850302,198.04,197.96,2.91]
[1755919019604,2.7,197.99,197.93,2.91]
[1755919019813,2.7,197.99,197.94,4.74800721]
[1755919020106,2.7,197.99,197.92,2.91]
[1755919020504,7.02030302,198.07,197.92,2.91]
[1755919020706,2.7,198.05,197.94,2.91]
[1755919020900,2.7,198.05,197.95,4.74756035]
[1755919021102,5.052,198.03,197.94,2.91]
[1755919021300,5.052,198.03,197.95,4.74439798]
[1755919021499,5.052,198.03,197.94,2.91]
[1755919021702,7.752,198.03,197.95,4.74509605]
[1755919021902,7.752,198.03,197.94,2.91]
[1755919021903,5.0522,198.02,197.94,2.91]
[1755919022206,5.0522,198.02,197.89,196.63571853]
[1755919022207,9.72030302,198.03,197.9,2.91]
[1755919022408,5.0527,197.99,197.92,2.91]
[1755919022604,7.7527,197.99,197.92,2.91]
[1755919022904,2.7,197.99,197.92,2.91]
[1755919023109,129.81,198.03,197.93,4.74134777]
[1755919023300,129.81,198.03,197.92,2.91]
[1755919023710,2.85,198.03,197.94,2.83]
[1755919024612,2.85,198.07,197.94,2.83]
[1755919024803,2.85,198.07,197.96,2.83]
[1755919025118,2.85,198.07,197.98,2.83]
[1755919026009,2.85,198.07,197.98,7.8828]
[1755919026506,2.85,198.07,197.99,4.75730019]
[1755919026712,2.85,198.07,197.98,7.8828]
[1755919026912,2.85,198.07,197.99,4.75723416]
[1755919027211,2.85,198.07,197.98,7.8828]
[1755919027513,2.85,198.07,197.99,4.75762393]
[1755919027704,2.85,198.07,197.98,2.83]
[1755919028008,2.85,198.02,197.98,2.83]
[1755919028207,2.85,198.02,197.92,7.02030302]
[1755919028208,2.85,198.07,197.88,32.29840302]
[1755919028510,2.85,198.05,197.94,2.83]
[1755919028710,2.85,198.04,197.94,2.83]
[1755919028906,25.263,198.0,197.89,2.83]
[1755919029214,2.85,198.01,197.9,4.76271175]
[1755919029507,2.85,198.01,197.89,2.83]
[1755919029713,2.85,198.01,197.9,4.76116794]
[1755919029908,2.85,198.0,197.89,2.83]
[1755919030309,7.9038,197.96,197.89,2.83]
[1755919030608,2.85,197.96,197.89,2.83]
[1755919030810,2.85,198.0,197.89,2.83]
[1755919031210,2.85,198.0,197.9,4.759425]
[1755919031415,7.02030302,197.97,197.9,4.759425]
[1755919031619,2.85,197.96,197.86,2.83]
[1755919032414,2.88416688,197.93,197.89,0.03293067]
[1755919032621,2.85,197.92,197.89,0.03293067]
[1755919032815,2.85,197.91,197.89,0.03293067]
[1755919033415,0.03416688,197.93,197.89,0.03293067]
[1755919033615,2.88416688,197.93,197.89,0.03293067]
[1755919034014,2.85,197.91,197.89,0.03293067]
[1755919034205,2.85,197.92,197.89,0.03293067]
[1755919034714,0.03416688,197.93,197.89,0.03293067]
[1755919034913,2.88416688,197.93,197.89,0.03293067]
[1755919035314,2.85,197.91,197.89,0.03293067]
[1755919038013,0.03416688,197.93,197.89,0.03293067]
[1755919038214,2.85,197.92,197.89,0.03293067]
[1755919039418,0.03416688,197.93,197.89,0.03293067]
[1755919039720,2.85,197.91,197.89,0.03293067]
[1755919040013,5.08876688,197.93,197.89,0.03293067]
[1755919040420,2.85,197.9,197.89,0.03293067]
[1755919041018,2.85,197.92,197.89,0.03293067]
[1755919041213,2.85,197.91,197.89,0.03293067]
[1755919041518,2.85,197.9,197.89,0.03293067]
[1755919043826,2.85,197.92,197.89,0.03293067]
[1755919044022,2.85,197.91,197.89,0.03293067]
[1755919045422,2.85,197.9,197.89,0.03293067]
[1755919045922,0.03416688,197.93,197.89,0.03293067]
[1755919046128,2.85,197.91,197.89,0.03293067]
[1755919046927,2.85,197.9,197.89,0.03293067]
[1755919049932,5.055,197.91,197.89,0.03293067]
[1755919050632,7.905,197.91,197.89,0.03293067]
[1755919050832,7.93856688,197.93,197.89,0.03293067]
[1755919051136,0.03416688,197.93,197.91,2.83]
[1755919051632,0.03416688,197.93,197.89,0.03293067]
[1755919051633,2.85,197.92,197.89,0.03293067]
[1755919052231,7.9051,197.9,197.89,0.03293067]
[1755919053233,2.85,197.9,197.89,0.03293067]
[1755919054434,5.0557,197.88,197.81,2.83]
[1755919054635,2.88,197.88,197.82,4.75317288]
[1755919054940,2.88,197.85,197.77,7.7283]
[1755919055237,2.88,197.85,197.77,2.67]
[1755919055430,2.88,197.89,197.77,2.67]
[1755919055631,0.03601068,197.83,197.79,2.67]
[1755919055827,0.03601068,197.83,197.81,2.67]
[1755919056031,0.03601068,197.83,197.82,2.67]
[1755919057535,2.88,197.94,197.86,2.67]
[1755919058233,2.88,197.98,197.87,4.57143509]
[1755919058433,2.88,197.98,197.88,4.57067643]
[1755919058740,2.88,197.98,197.9,5.0549]
[1755919058940,2.88,197.98,197.86,2.67]
[1755919059239,2.88,197.98,197.87,9.21745823]
[1755919059434,2.88,197.98,197.86,2.67]
[1755919059934,5.0543,197.94,197.86,2.67]
[1755919060242,2.88,197.93,197.79,2.67]
[1755919060441,5.0548,197.92,197.82,5.0571]
[1755919060637,2.88,197.91,197.83,9.22509407]
[1755919060935,2.88,197.95,197.88,7.7256]
[1755919061139,2.88,197.95,197.88,2.67]
[1755919061538,5.0542,197.94,197.86,5.0561]
[1755919063636,5.0542,197.94,197.84,7.7266]
[1755919063840,5.0542,197.94,197.85,4.57790835]
[1755919064039,5.0542,197.94,197.84,7.7266]
[1755919064241,2.88,197.95,197.85,4.57656964]
[1755919064443,2.88,197.95,197.86,11.89727983]
[1755919064646,2.88,197.95,197.87,4.57656964]
[1755919064840,2.88,197.95,197.86,2.67]
[1755919065040,2.88,197.95,197.87,9.63171509]
[1755919065340,2.88,197.95,197.87,5.0557]
[1755919065838,2.88,197.9,197.81,2.67]
[1755919066942,2.88,197.94,197.82,4.57905496]
[1755919067247,2.88,197.94,197.83,7.24856674]
[1755919067442,5.0548,197.92,197.83,2.67]
[1755919068147,126.92,197.98,197.85,2.67]
[1755919068447,2.88,197.98,197.87,2.67]
[1755919069254,5.0529,197.99,197.9,7.7249]
[1755919069748,9.90030302,198.02,197.92,5.0544]
[1755919069749,5.0524,198.01,197.92,5.0544]
[1755919070240,2.88,198.02,197.9,2.67]
[1755919070637,2.88,198.02,197.91,4.57601257]
[1755919070837,2.88,198.02,197.9,2.67]
[1755919071044,2.88,198.02,197.91,4.57606912]
[1755919071244,2.88,198.02,197.9,2.67]
[1755919071445,2.88,198.02,197.91,4.57839623]
[1755919071646,5.0526,198.0,197.91,5.0547]
[1755919072250,5.0526,198.0,197.92,4.58115817]
[1755919072448,5.0526,198.0,197.91,5.0547]
[1755919072747,5.0526,198.0,197.92,4.58130667]
[1755919072945,339.66,198.03,197.88,7.02030302]
[1755919073142,339.66,198.03,197.86,25.2807]
[1755919073143,2.88,198.1,197.95,2.67]
[1755919073449,2.88,198.1,197.97,2.67]
[1755919073642,2.88,198.1,197.98,9.3808265]
[1755919073846,2.88,198.1,197.99,12.03863059]
[1755919074042,2.88,198.1,198.0,4.57237566]
[1755919074241,2.88,198.1,197.99,2.67]
[1755919074643,5.0503,198.09,197.99,7.7226]
[1755919075437,5.0503,198.09,197.99,2.67]
[1755919077245,2.88,198.1,197.99,2.67]
[1755919077650,2.88,198.1,198.01,2.67]
[1755919077854,2.88,198.1,198.01,7.722]
[1755919078053,5.0495,198.13,198.02,2.67]
[1755919079251,5.0497,198.12,198.02,2.67]
[1755919080251,0.87862147,198.17,198.01,2.67]
[1755919080461,2.88,198.18,198.04,2.67]
[1755919080655,2.88,198.18,198.06,2.67]
[1755919081553,5.0487,198.16,198.08,2.67]
[1755919083356,2.88,198.18,198.09,5.0503]
[1755919083554,2.88,198.18,198.08,2.67]
[1755919083555,27.9907,198.26,198.1,2.92]
[1755919083757,27.9907,198.26,198.12,7.02030302]
[1755919083957,2.76,198.26,198.13,2.92]
[1755919084560,2.76,198.22,198.13,2.92]
[1755919085154,5.0472,198.21,198.13,2.92]
[1755919085356,2.76,198.23,198.08,2.92]
[1755919085751,25.2362,198.21,198.08,2.92]
[1755919085956,2.76,198.2,198.08,2.92]
[1755919086156,2.79845391,198.17,198.14,0.03549604]
[1755919086360,2.76,198.15,198.14,0.03549604]
[1755919086861,2.76,198.15,198.04,2.92]
[1755919087555,5.0493,198.13,198.04,2.92]
[1755919088059,2.76,198.15,198.04,2.92]
[1755919088261,0.03233732,198.1,198.04,2.92]
[1755919088657,2.76,198.19,198.04,2.92]
[1755919089151,0.03835518,198.09,198.04,2.92]
[1755919089357,2.76,198.19,198.04,2.92]
[1755919089660,2.76,198.18,198.04,2.92]
[1755919089960,0.03874189,198.08,198.05,5.0512]
[1755919090255,25.2388,198.19,198.07,2.92]
[1755919090451,0.032783,198.08,198.04,2.92]
[1755919090650,0.032783,198.08,198.05,2.92]
[1755919090962,2.76,198.15,198.05,2.92]
[1755919091158,0.03551899,198.08,198.05,2.92]
[1755919091358,0.03551899,198.08,198.06,2.92]
[1755919091561,5.0496,198.12,198.06,2.92]
[1755919091761,0.0382664,198.08,198.06,2.92]
[1755919092256,0.0382664,198.08,198.04,2.92]
[1755919092656,0.0382664,198.08,197.98,25.2655]
[1755919092657,0.0382664,198.08,197.98,2.92]
[1755919093363,5.0513,198.06,197.98,2.92]
[1755919094062,0.03271412,198.04,197.98,2.92]
[1755919094760,0.03271412,198.04,197.98,7.9729]
[1755919094955,0.03271412,198.04,197.98,2.92]
[1755919095352,0.03271412,198.04,198.0,5.0524]
[1755919095553,0.03271412,198.04,197.98,2.92]
[1755919096357,0.03271412,198.04,198.01,2.92]
[1755919096563,28.003,198.16,198.02,2.92]
[1755919097656,2.76,198.15,198.01,126.86]
[1755919098770,2.76,198.09,198.01,126.86]
[1755919099761,2.76,198.09,198.02,2.92]
[1755919102574,5.0502,198.1,198.02,2.92]
[1755919102774,5.0496,198.12,198.02,2.92]
[1755919103669,5.05,198.11,198.02,7.9719]
[1755919104272,5.05,198.11,198.03,2.92]
[1755919104470,7.8093,198.13,198.03,7.9716]
[1755919105372,5.0497,198.12,198.03,7.9716]
[1755919105871,5.0499,198.11,198.03,7.9716]
[1755919106074,2.76,198.13,198.03,7.9716]
[1755919106075,2.76,198.13,198.03,2.92]
[1755919106274,2.76,198.13,197.98,2.92]
[1755919106475,25.2483,198.12,197.99,4.75933]
[1755919106672,2.76,198.11,197.98,2.92]
[1755919106973,5.051,198.07,197.98,2.92]
[1755919107173,5.051,198.07,197.99,4.76140841]
[1755919107474,5.051,198.07,197.98,2.92]
[1755919107674,5.051,198.07,198.0,2.92]
[1755919108473,5.0504,198.09,198.0,7.9724]
[1755919108674,5.0504,198.09,198.01,2.92]
[1755919109176,5.0499,198.11,198.03,2.92]
[1755919110570,5.0499,198.11,198.03,7.9717]
[1755919110774,2.76,198.11,197.97,316.78608794]
[1755919111081,2.76,198.11,197.98,7.68757039]
[1755919111277,2.76,198.11,197.99,4.76757039]
[1755919111478,2.76,198.11,198.0,4.76757039]
[1755919111779,5.0512,198.06,197.98,7.9729]
[1755919112072,25.2505,198.1,197.98,7.9729]
[1755919112073,2.76,198.08,197.99,4.77284533]
[1755919112375,2.76,198.08,197.98,2.92]
[1755919112577,2.76,198.08,197.99,4.77924317]
[1755919112776,25.2505,198.1,197.95,129.76]
[1755919112777,2.76,198.04,197.95,129.76]
[1755919112968,2.76,198.04,197.96,6.76630388]
[1755919113172,2.74,198.09,197.98,2.77]
[1755919113374,2.74,198.09,197.99,4.78000807]
[1755919113573,2.74,198.09,198.0,4.78000807]
[1755919113774,2.74,198.09,198.01,4.78000807]
[1755919113972,2.74,198.09,197.98,2.77]
[1755919114175,2.74,198.09,197.99,4.78130322]
[1755919114372,2.74,198.09,198.0,4.78130322]
[1755919114572,5.0507,198.08,198.01,4.78130322]
[1755919114777,5.0507,198.08,198.01,2.77]
[1755919115876,5.0507,198.08,198.02,4.78593589]
[1755919116075,5.0507,198.08,198.01,7.8222]
[1755919116372,5.0507,198.08,198.02,4.78584947]
[1755919116576,5.0507,198.08,198.01,7.8222]